[Event "Late-Titled-Tuesday-Blitz-May-07-2024"]
[Site "Chess.com"]
[Date "2024.05.07"]
[Round "1"]
[White "karinachess1"]
[Black "martinmena"]
[Result "1-0"]
[WhiteElo "2589"]
[BlackElo "2152"]
[TimeControl "180+1"]
[EndTime "14:08:24 PDT"]
[Termination "karinachess1 won on time"]

1. e4 {[%clk 0:02:56.5]} 1... c6 {[%clk 0:02:59.4]} 2. Ne2 {[%clk 0:02:55.4]}
2... d5 {[%clk 0:03:00.3]} 3. e5 {[%clk 0:02:55.7]} 3... Bf5 {[%clk 0:02:55.6]}
4. Ng3 {[%clk 0:02:55.4]} 4... Bg6 {[%clk 0:02:54.9]} 5. h4 {[%clk 0:02:55.8]}
5... h5 {[%clk 0:02:54.4]} 6. e6 {[%clk 0:02:55.6]} 6... f6 {[%clk 0:02:28.2]}
7. d4 {[%clk 0:02:39.1]} 7... Qd6 {[%clk 0:02:23.8]} 8. Qe2 {[%clk 0:02:36.9]}
8... Qb4+ {[%clk 0:01:56.2]} 9. c3 {[%clk 0:02:31.7]} 9... Qd6 {[%clk
0:01:50.7]} 10. Nd2 {[%clk 0:02:26.1]} 10... Na6 {[%clk 0:01:45.5]} 11. Nb3
{[%clk 0:02:20.2]} 11... Nc7 {[%clk 0:01:41.4]} 12. Nc5 {[%clk 0:01:54.9]} 12...
b6 {[%clk 0:01:40.2]} 13. Na6 {[%clk 0:01:55.1]} 13... Nxe6 {[%clk 0:01:29.1]}
14. Bd2 {[%clk 0:01:53]} 14... Nc7 {[%clk 0:01:24.6]} 15. O-O-O {[%clk 0:01:51]}
15... b5 {[%clk 0:01:17.9]} 16. Nc5 {[%clk 0:01:45.7]} 16... e6 {[%clk
0:01:14.4]} 17. Qf3 {[%clk 0:01:40.5]} 17... Qd8 {[%clk 0:00:53.7]} 18. Bd3
{[%clk 0:01:37.3]} 18... Bf7 {[%clk 0:00:41.9]} 19. Rhe1 {[%clk 0:01:25.1]}
19... Bxc5 {[%clk 0:00:39.4]} 20. dxc5 {[%clk 0:01:26]} 20... Qd7 {[%clk
0:00:34.8]} 21. Nf5 {[%clk 0:01:24.1]} 21... O-O-O {[%clk 0:00:16.1]} 22. Nd6+
{[%clk 0:01:24.2]} 22... Kb8 {[%clk 0:00:15.7]} 23. Bf4 {[%clk 0:01:20.4]} 23...
e5 {[%clk 0:00:15.5]} 24. Bxe5 {[%clk 0:01:17]} 24... fxe5 {[%clk 0:00:14.7]}
25. Qxf7 {[%clk 0:01:17.1]} 25... e4 {[%clk 0:00:11]} 26. Bc2 {[%clk 0:01:00.3]}
26... Nf6 {[%clk 0:00:11.2]} 27. f3 {[%clk 0:00:59.5]} 27... Rhf8 {[%clk
0:00:08.3]} 28. Qxd7 {[%clk 0:00:58.8]} 28... Rxd7 {[%clk 0:00:08.7]} 29. fxe4
{[%clk 0:00:59]} 29... dxe4 {[%clk 0:00:08]} 30. Bxe4 {[%clk 0:00:56.7]} 30...
Ncd5 {[%clk 0:00:07.4]} 31. Bf3 {[%clk 0:00:53.9]} 31... Re7 {[%clk 0:00:04.9]}
32. Rxe7 {[%clk 0:00:50.4]} 32... Nxe7 {[%clk 0:00:05.8]} 33. Re1 {[%clk
0:00:51]} 33... Ned5 {[%clk 0:00:06.1]} 34. Kc2 {[%clk 0:00:50.8]} 34... Kc7
{[%clk 0:00:04.2]} 35. Re5 {[%clk 0:00:48.7]} 35... Kd7 {[%clk 0:00:04.1]} 36.
a4 {[%clk 0:00:41.7]} 36... a6 {[%clk 0:00:03.7]} 37. axb5 {[%clk 0:00:37.1]}
37... axb5 {[%clk 0:00:04.6]} 38. Rg5 {[%clk 0:00:36]} 38... Rg8 {[%clk
0:00:03.8]} 39. Kd3 {[%clk 0:00:32.6]} 39... g6 {[%clk 0:00:03.9]} 40. Kd4
{[%clk 0:00:24.3]} 40... Nf4 {[%clk 0:00:04.5]} 41. Re5 {[%clk 0:00:18.6]} 41...
Ne6+ {[%clk 0:00:04.8]} 42. Kd3 {[%clk 0:00:19.1]} 42... Nf4+ {[%clk 0:00:04.8]}
43. Kd2 {[%clk 0:00:18.7]} 43... N4d5 {[%clk 0:00:04.9]} 44. b3 {[%clk
0:00:15.5]} 44... Rg7 {[%clk 0:00:05.5]} 45. c4 {[%clk 0:00:14.7]} 45... Re7
{[%clk 0:00:05.4]} 46. Rxe7+ {[%clk 0:00:13.4]} 46... Nxe7 {[%clk 0:00:05.5]}
47. cxb5 {[%clk 0:00:13.9]} 47... cxb5 {[%clk 0:00:05.7]} 48. Nxb5 {[%clk
0:00:14.8]} 48... Nf5 {[%clk 0:00:03.7]} 49. c6+ {[%clk 0:00:14]} 49... Kc8
{[%clk 0:00:02.6]} 50. Na7+ {[%clk 0:00:07.4]} 50... Kc7 {[%clk 0:00:02.5]} 51.
Nb5+ {[%clk 0:00:07.9]} 51... Kc8 {[%clk 0:00:02.7]} 52. b4 {[%clk 0:00:07.5]}
52... Ne8 {[%clk 0:00:03]} 53. Na7+ {[%clk 0:00:05.9]} 53... Kc7 {[%clk
0:00:03]} 54. Nb5+ {[%clk 0:00:06]} 54... Kb6 {[%clk 0:00:02.7]} 55. Nc3 {[%clk
0:00:05.4]} 55... Nd4 {[%clk 0:00:01.2]} 56. Be4 {[%clk 0:00:05.4]} 56... Nxc6
{[%clk 0:00:00.7]} 57. Nd5+ {[%clk 0:00:05.8]} 1-0

[Event "Late-Titled-Tuesday-Blitz-May-07-2024"]
[Site "Chess.com"]
[Date "2024.05.07"]
[Round "1"]
[White "SHIVACalypso"]
[Black "klimkoj"]
[Result "0-1"]
[WhiteElo "2532"]
[BlackElo "2940"]
[TimeControl "180+1"]
[EndTime "14:08:29 PDT"]
[Termination "klimkoj won by checkmate"]

1. c4 {[%clk 0:02:59.4]} 1... Nf6 {[%clk 0:02:56.8]} 2. Nc3 {[%clk 0:02:58.9]}
2... c5 {[%clk 0:02:55.1]} 3. Nf3 {[%clk 0:02:57.9]} 3... d5 {[%clk 0:02:55]} 4.
cxd5 {[%clk 0:02:57.6]} 4... Nxd5 {[%clk 0:02:54]} 5. Nxd5 {[%clk 0:02:58.5]}
5... Qxd5 {[%clk 0:02:54.5]} 6. d3 {[%clk 0:02:56.8]} 6... Nc6 {[%clk
0:02:52.5]} 7. g3 {[%clk 0:02:56.5]} 7... e5 {[%clk 0:02:47.8]} 8. Bg2 {[%clk
0:02:56.9]} 8... Be7 {[%clk 0:02:47.6]} 9. O-O {[%clk 0:02:56.4]} 9... O-O
{[%clk 0:02:47.5]} 10. Be3 {[%clk 0:02:56.8]} 10... Qe6 {[%clk 0:02:47.9]} 11.
Rc1 {[%clk 0:02:56.3]} 11... Nd4 {[%clk 0:02:44.8]} 12. Bxd4 {[%clk 0:02:47.9]}
12... exd4 {[%clk 0:02:43.5]} 13. a3 {[%clk 0:02:46.4]} 13... Qb6 {[%clk
0:02:40.2]} 14. Qc2 {[%clk 0:02:36.5]} 14... Be6 {[%clk 0:02:39.8]} 15. e3
{[%clk 0:02:34.6]} 15... dxe3 {[%clk 0:02:38.5]} 16. fxe3 {[%clk 0:02:34.9]}
16... Bf6 {[%clk 0:02:35.6]} 17. Qxc5 {[%clk 0:02:23.8]} 17... Bxb2 {[%clk
0:02:31.8]} 18. Qxb6 {[%clk 0:02:22.4]} 18... axb6 {[%clk 0:02:32.7]} 19. Rb1
{[%clk 0:02:22.6]} 19... Bxa3 {[%clk 0:02:33]} 20. Rxb6 {[%clk 0:02:21.5]} 20...
Bc5 {[%clk 0:02:32.5]} 21. Rxb7 {[%clk 0:02:21]} 21... Bxe3+ {[%clk 0:02:32.3]}
22. Kh1 {[%clk 0:02:21.1]} 22... Ra2 {[%clk 0:02:29]} 23. Rfb1 {[%clk
0:01:43.7]} 23... g6 {[%clk 0:02:17.5]} 24. R7b2 {[%clk 0:01:38.6]} 24... Rfa8
{[%clk 0:02:15.4]} 25. Rxa2 {[%clk 0:01:29.1]} 25... Rxa2 {[%clk 0:02:16.3]} 26.
Re1 {[%clk 0:01:18.4]} 26... Bf2 {[%clk 0:02:14.2]} 27. Rf1 {[%clk 0:01:17.7]}
27... Bf5 {[%clk 0:02:09.7]} 28. Ne5 {[%clk 0:01:17.4]} 28... Bd4 {[%clk
0:02:00.5]} 29. Bd5 {[%clk 0:01:11.9]} 29... Ra5 {[%clk 0:01:40.7]} 30. Bxf7+
{[%clk 0:01:10.8]} 30... Kg7 {[%clk 0:01:39.3]} 31. Nf3 {[%clk 0:01:11.1]} 31...
Bxd3 {[%clk 0:01:32.9]} 32. Re1 {[%clk 0:01:03.8]} 32... Bf2 {[%clk 0:01:07.9]}
33. Re7 {[%clk 0:01:03.2]} 33... Kf6 {[%clk 0:01:06.2]} 34. Rd7 {[%clk
0:00:54.2]} 34... Bf5 {[%clk 0:00:59]} 35. Rd2 {[%clk 0:00:45.5]} 35... Bb6
{[%clk 0:00:40.2]} 36. Bc4 {[%clk 0:00:36.7]} 36... Bc5 {[%clk 0:00:35.3]} 37.
Kg2 {[%clk 0:00:32.6]} 37... Be4 {[%clk 0:00:33.8]} 38. Re2 {[%clk 0:00:25.5]}
38... Bb7 {[%clk 0:00:28.9]} 39. Rb2 {[%clk 0:00:22.2]} 39... Ba8 {[%clk
0:00:27.1]} 40. Be2 {[%clk 0:00:15.9]} 40... Ra3 {[%clk 0:00:24.9]} 41. Rc2
{[%clk 0:00:14.5]} 41... Bb6 {[%clk 0:00:24.3]} 42. Rb2 {[%clk 0:00:14.2]} 42...
Ba7 {[%clk 0:00:23.3]} 43. Rc2 {[%clk 0:00:13.4]} 43... h5 {[%clk 0:00:21.6]}
44. h3 {[%clk 0:00:13.4]} 44... g5 {[%clk 0:00:20.7]} 45. g4 {[%clk 0:00:13.2]}
45... hxg4 {[%clk 0:00:20.3]} 46. hxg4 {[%clk 0:00:14.1]} 46... Ra4 {[%clk
0:00:20.9]} 47. Rc4 {[%clk 0:00:13.7]} 47... Ra2 {[%clk 0:00:20]} 48. Kf1 {[%clk
0:00:12.2]} 48... Bxf3 {[%clk 0:00:14.8]} 49. Bxf3 {[%clk 0:00:11.9]} 49... Rf2+
{[%clk 0:00:15.3]} 50. Ke1 {[%clk 0:00:11.9]} 50... Rxf3 {[%clk 0:00:16.2]} 51.
Rc6+ {[%clk 0:00:10.7]} 51... Ke5 {[%clk 0:00:16.2]} 52. Rg6 {[%clk 0:00:04.4]}
52... Kf4 {[%clk 0:00:15]} 53. Rf6+ {[%clk 0:00:03.7]} 53... Kxg4 {[%clk
0:00:15.2]} 54. Ra6 {[%clk 0:00:03.8]} 54... Be3 {[%clk 0:00:14.4]} 55. Ra4+
{[%clk 0:00:03.5]} 55... Bf4 {[%clk 0:00:14.4]} 56. Ke2 {[%clk 0:00:02.5]} 56...
Rh3 {[%clk 0:00:15.3]} 57. Kf2 {[%clk 0:00:02.6]} 57... Rh2+ {[%clk 0:00:15.9]}
58. Kg1 {[%clk 0:00:03.2]} 58... Rd2 {[%clk 0:00:16.6]} 59. Ra3 {[%clk
0:00:03.5]} 59... Re2 {[%clk 0:00:15.9]} 60. Rb3 {[%clk 0:00:03.5]} 60... Re3
{[%clk 0:00:16.3]} 61. Rb4 {[%clk 0:00:03.3]} 61... Kg3 {[%clk 0:00:16.6]} 62.
Rb2 {[%clk 0:00:03.8]} 62... Re1# {[%clk 0:00:16.5]} 0-1

[Event "Late-Titled-Tuesday-Blitz-May-07-2024"]
[Site "Chess.com"]
[Date "2024.05.07"]
[Round "1"]
[White "koziororo"]
[Black "MuhittinBuker"]
[Result "1-0"]
[WhiteElo "2603"]
[BlackElo "2204"]
[TimeControl "180+1"]
[EndTime "14:08:30 PDT"]
[Termination "koziororo won on time"]

1. e4 {[%clk 0:03:00.9]} 1... e5 {[%clk 0:02:57.7]} 2. Nf3 {[%clk 0:03:01.2]}
2... Nc6 {[%clk 0:02:57.3]} 3. Nc3 {[%clk 0:03:01.8]} 3... Nf6 {[%clk
0:02:56.7]} 4. d4 {[%clk 0:03:02.2]} 4... exd4 {[%clk 0:02:49.6]} 5. Nd5 {[%clk
0:03:02.8]} 5... Be7 {[%clk 0:02:44.9]} 6. Nxd4 {[%clk 0:02:57.7]} 6... Nxd4
{[%clk 0:02:43.8]} 7. Qxd4 {[%clk 0:02:57]} 7... Nxd5 {[%clk 0:02:43.8]} 8. exd5
{[%clk 0:02:56.7]} 8... Bf6 {[%clk 0:02:42.9]} 9. Qe4+ {[%clk 0:02:56.1]} 9...
Qe7 {[%clk 0:02:42.5]} 10. Qxe7+ {[%clk 0:02:56.6]} 10... Kxe7 {[%clk
0:02:41.6]} 11. Bf4 {[%clk 0:02:56.7]} 11... d6 {[%clk 0:02:41.2]} 12. O-O-O
{[%clk 0:02:57]} 12... Re8 {[%clk 0:02:41]} 13. Bd3 {[%clk 0:02:54.3]} 13... h6
{[%clk 0:02:31.1]} 14. Rhe1+ {[%clk 0:02:52.9]} 14... Kf8 {[%clk 0:02:29.4]} 15.
Rxe8+ {[%clk 0:02:53.3]} 15... Kxe8 {[%clk 0:02:28.7]} 16. Re1+ {[%clk
0:02:53.9]} 16... Kf8 {[%clk 0:02:26.9]} 17. g3 {[%clk 0:02:51.2]} 17... Bd7
{[%clk 0:02:26.5]} 18. c4 {[%clk 0:02:50.1]} 18... b6 {[%clk 0:02:25.8]} 19. h4
{[%clk 0:02:48.3]} 19... Re8 {[%clk 0:02:26.3]} 20. Rxe8+ {[%clk 0:02:48.7]}
20... Kxe8 {[%clk 0:02:25.7]} 21. b3 {[%clk 0:02:49.4]} 21... Bg4 {[%clk
0:02:22.8]} 22. Kd2 {[%clk 0:02:48.6]} 22... Ke7 {[%clk 0:02:20.3]} 23. Be4
{[%clk 0:02:48.7]} 23... Bd4 {[%clk 0:02:09.1]} 24. Be3 {[%clk 0:02:47.5]} 24...
Bxe3+ {[%clk 0:02:06.6]} 25. Kxe3 {[%clk 0:02:48.4]} 25... f5 {[%clk 0:01:43.7]}
26. f3 {[%clk 0:02:47.3]} 26... Bh3 {[%clk 0:01:41.1]} 27. Bd3 {[%clk
0:02:46.8]} 27... Kf6 {[%clk 0:01:38.2]} 28. Be2 {[%clk 0:02:28.5]} 28... g5
{[%clk 0:01:21.9]} 29. hxg5+ {[%clk 0:02:25.4]} 29... hxg5 {[%clk 0:01:21.6]}
30. f4 {[%clk 0:02:14.9]} 30... Bg2 {[%clk 0:01:11.8]} 31. Bd3 {[%clk
0:02:10.8]} 31... g4 {[%clk 0:01:06.4]} 32. a3 {[%clk 0:02:04.7]} 32... a5
{[%clk 0:01:04.9]} 33. b4 {[%clk 0:02:04.3]} 33... axb4 {[%clk 0:01:05]} 34.
axb4 {[%clk 0:02:05.2]} 34... Bf3 {[%clk 0:01:03.4]} 35. Kd4 {[%clk 0:02:04.8]}
35... Bd1 {[%clk 0:00:54]} 36. c5 {[%clk 0:02:03.9]} 36... bxc5+ {[%clk
0:00:49.9]} 37. bxc5 {[%clk 0:02:03.5]} 37... Ba4 {[%clk 0:00:48]} 38. Ba6
{[%clk 0:02:01.9]} 38... Bd7 {[%clk 0:00:46.1]} 39. Kc4 {[%clk 0:01:42.2]} 39...
Ke7 {[%clk 0:00:44.9]} 40. Kb4 {[%clk 0:01:38.8]} 40... Kd8 {[%clk 0:00:44.4]}
41. Bb7 {[%clk 0:01:34.7]} 41... Be8 {[%clk 0:00:40.8]} 42. Ba6 {[%clk
0:01:30.7]} 42... Bf7 {[%clk 0:00:39.1]} 43. Kc4 {[%clk 0:01:30]} 43... Kd7
{[%clk 0:00:35.5]} 44. Kd4 {[%clk 0:01:29.4]} 44... Bg6 {[%clk 0:00:33]} 45. Bd3
{[%clk 0:01:27.4]} 45... Ke7 {[%clk 0:00:30.9]} 46. Ba6 {[%clk 0:01:07.6]} 46...
Kd7 {[%clk 0:00:30.3]} 47. Bb7 {[%clk 0:01:06.5]} 47... Bh7 {[%clk 0:00:29.1]}
48. Kc4 {[%clk 0:01:04.4]} 48... Bg6 {[%clk 0:00:28.4]} 49. Bc6+ {[%clk
0:01:02.2]} 49... Kd8 {[%clk 0:00:26.5]} 50. Ba4 {[%clk 0:01:02.4]} 50... Bh7
{[%clk 0:00:25.1]} 51. Kb5 {[%clk 0:01:00.5]} 51... Bg6 {[%clk 0:00:22.2]} 52.
Bc2 {[%clk 0:01:00.7]} 52... Be8+ {[%clk 0:00:20.7]} 53. Ka6 {[%clk 0:00:56.2]}
53... Bg6 {[%clk 0:00:20]} 54. cxd6 {[%clk 0:00:52.7]} 54... cxd6 {[%clk
0:00:19.3]} 55. Kb6 {[%clk 0:00:53.6]} 55... Ke7 {[%clk 0:00:19.7]} 56. Kc7
{[%clk 0:00:54]} 56... Bh7 {[%clk 0:00:20]} 57. Ba4 {[%clk 0:00:54.1]} 57... Bg6
{[%clk 0:00:19.6]} 58. Bd7 {[%clk 0:00:54.7]} 58... Bh7 {[%clk 0:00:19.4]} 59.
Be6 {[%clk 0:00:55.3]} 59... Bg6 {[%clk 0:00:19.7]} 60. Kc8 {[%clk 0:00:55.7]}
60... Bh7 {[%clk 0:00:19.9]} 61. Kb7 {[%clk 0:00:56.4]} 61... Bg6 {[%clk
0:00:20.3]} 62. Kc6 {[%clk 0:00:56.3]} 62... Bh7 {[%clk 0:00:20.8]} 63. Kc7
{[%clk 0:00:56.9]} 63... Bg6 {[%clk 0:00:21.3]} 64. Bg8 {[%clk 0:00:57.5]} 64...
Be8 {[%clk 0:00:17.7]} 65. Bh7 {[%clk 0:00:56.9]} 65... Bf7 {[%clk 0:00:16.6]}
66. Bxf5 {[%clk 0:00:56.4]} 66... Bxd5 {[%clk 0:00:17.3]} 67. Bxg4 {[%clk
0:00:57]} 67... Be4 {[%clk 0:00:17.3]} 68. Kb6 {[%clk 0:00:54.2]} 68... d5
{[%clk 0:00:17.6]} 69. Kc5 {[%clk 0:00:54.6]} 69... Kf6 {[%clk 0:00:17.8]} 70.
Kd4 {[%clk 0:00:54.7]} 70... Bh1 {[%clk 0:00:16.7]} 71. Bh3 {[%clk 0:00:50.6]}
71... Bf3 {[%clk 0:00:16.6]} 72. g4 {[%clk 0:00:49.7]} 72... Kg6 {[%clk
0:00:13.7]} 73. Ke5 {[%clk 0:00:48.8]} 73... Bh1 {[%clk 0:00:12.3]} 74. Bf1
{[%clk 0:00:46.8]} 74... Kf7 {[%clk 0:00:10.6]} 75. Bd3 {[%clk 0:00:46.5]} 75...
Bg2 {[%clk 0:00:08.8]} 76. g5 {[%clk 0:00:46.7]} 76... Bf3 {[%clk 0:00:08.3]}
77. f5 {[%clk 0:00:46.7]} 77... Bg2 {[%clk 0:00:08]} 78. f6 {[%clk 0:00:46.8]}
78... Bf3 {[%clk 0:00:06.6]} 79. g6+ {[%clk 0:00:46.8]} 79... Kf8 {[%clk
0:00:05.8]} 80. g7+ {[%clk 0:00:47.1]} 80... Kf7 {[%clk 0:00:05.9]} 81. Bf5
{[%clk 0:00:47.4]} 1-0

[Event "Late-Titled-Tuesday-Blitz-May-07-2024"]
[Site "Chess.com"]
[Date "2024.05.07"]
[Round "1"]
[White "semchik90"]
[Black "quvnoq_muxlis"]
[Result "1-0"]
[WhiteElo "2422"]
[BlackElo "2696"]
[TimeControl "180+1"]
[EndTime "14:08:41 PDT"]
[Termination "semchik90 won by resignation"]

1. Nf3 {[%clk 0:03:00.4]} 1... d5 {[%clk 0:02:59.1]} 2. c4 {[%clk 0:03:00.7]}
2... e6 {[%clk 0:02:58.9]} 3. d4 {[%clk 0:03:00.6]} 3... a6 {[%clk 0:02:59.1]}
4. cxd5 {[%clk 0:02:58.9]} 4... exd5 {[%clk 0:03:00]} 5. Nc3 {[%clk 0:02:59.5]}
5... Nf6 {[%clk 0:02:50.6]} 6. Bg5 {[%clk 0:02:58.9]} 6... c6 {[%clk 0:02:50.9]}
7. e3 {[%clk 0:02:58.5]} 7... Bd6 {[%clk 0:02:51.5]} 8. Ne5 {[%clk 0:02:57.7]}
8... h6 {[%clk 0:02:37.3]} 9. Bh4 {[%clk 0:02:53.9]} 9... Nbd7 {[%clk
0:02:37.2]} 10. f4 {[%clk 0:02:51.2]} 10... O-O {[%clk 0:02:34.8]} 11. Bd3
{[%clk 0:02:50.4]} 11... Qb6 {[%clk 0:02:23.1]} 12. Qe2 {[%clk 0:02:40.8]} 12...
Qa5 {[%clk 0:02:11.4]} 13. O-O {[%clk 0:02:34.3]} 13... Re8 {[%clk 0:02:08.8]}
14. Bc2 {[%clk 0:02:21.5]} 14... c5 {[%clk 0:01:28.3]} 15. Nxd7 {[%clk
0:02:03.7]} 15... Nxd7 {[%clk 0:01:27.9]} 16. Nxd5 {[%clk 0:02:03.8]} 16... cxd4
{[%clk 0:01:22.7]} 17. Qd3 {[%clk 0:02:04]} 17... Nf8 {[%clk 0:01:17.3]} 18.
Qxd4 {[%clk 0:01:57.7]} 18... Bc5 {[%clk 0:01:16.3]} 19. Qd3 {[%clk 0:01:49.1]}
19... Be6 {[%clk 0:01:09.6]} 20. Nc3 {[%clk 0:01:16.3]} 20... Rad8 {[%clk
0:00:55.9]} 21. Bxd8 {[%clk 0:01:15.8]} 21... Rxd8 {[%clk 0:00:56.8]} 22. Qe2
{[%clk 0:01:13.6]} 22... Qb6 {[%clk 0:00:49.9]} 23. Na4 {[%clk 0:01:08.3]} 23...
Bxe3+ {[%clk 0:00:43]} 24. Kh1 {[%clk 0:01:08.2]} 24... Qa7 {[%clk 0:00:42.6]}
25. f5 {[%clk 0:01:03.5]} 25... Bd7 {[%clk 0:00:34.5]} 26. Nc3 {[%clk
0:00:50.2]} 26... Re8 {[%clk 0:00:29.1]} 27. Qd3 {[%clk 0:00:47.2]} 27... Bc6
{[%clk 0:00:27.7]} 28. Rae1 {[%clk 0:00:44.7]} 28... Qc5 {[%clk 0:00:17.1]} 29.
Nd1 {[%clk 0:00:41.2]} 29... Bg5 {[%clk 0:00:15.8]} 30. Rxe8 {[%clk 0:00:38.7]}
30... Bxe8 {[%clk 0:00:16.7]} 31. Nc3 {[%clk 0:00:35.9]} 31... Qe5 {[%clk
0:00:12.8]} 32. Qe4 {[%clk 0:00:33.9]} 32... Qb8 {[%clk 0:00:11]} 33. Nd5 {[%clk
0:00:31.8]} 33... Bc6 {[%clk 0:00:11.2]} 34. f6 {[%clk 0:00:28.8]} 34... gxf6
{[%clk 0:00:02.7]} 35. Ne7+ {[%clk 0:00:25.7]} 35... Kg7 {[%clk 0:00:03.1]} 36.
Nxc6 {[%clk 0:00:22.6]} 36... bxc6 {[%clk 0:00:04]} 37. b3 {[%clk 0:00:17.7]}
37... Qd6 {[%clk 0:00:03.5]} 38. Rd1 {[%clk 0:00:16.5]} 38... Qe6 {[%clk
0:00:02.2]} 39. Qxe6 {[%clk 0:00:16.4]} 39... Nxe6 {[%clk 0:00:02.2]} 40. Rd6
{[%clk 0:00:15.4]} 40... c5 {[%clk 0:00:02.2]} 41. Rxa6 {[%clk 0:00:15.3]} 41...
Nd4 {[%clk 0:00:03.1]} 42. Bd3 {[%clk 0:00:14.6]} 42... f5 {[%clk 0:00:02.5]}
43. Ra8 {[%clk 0:00:12.8]} 43... Be3 {[%clk 0:00:02.3]} 44. a4 {[%clk
0:00:11.6]} 44... Nxb3 {[%clk 0:00:02.3]} 45. Bxf5 {[%clk 0:00:12]} 45... c4
{[%clk 0:00:02.4]} 46. Rc8 {[%clk 0:00:10.5]} 46... Nd2 {[%clk 0:00:01.9]} 47.
Bc2 {[%clk 0:00:09.1]} 47... Kf6 {[%clk 0:00:02.5]} 48. a5 {[%clk 0:00:09.4]}
48... Ke5 {[%clk 0:00:03.1]} 49. a6 {[%clk 0:00:09.6]} 49... Bb6 {[%clk
0:00:03.1]} 50. Rb8 {[%clk 0:00:07.9]} 50... Be3 {[%clk 0:00:03.7]} 51. Rb7
{[%clk 0:00:07.4]} 51... f5 {[%clk 0:00:03.6]} 52. a7 {[%clk 0:00:07.7]} 52...
Bxa7 {[%clk 0:00:04.2]} 53. Rxa7 {[%clk 0:00:08.5]} 53... f4 {[%clk 0:00:05.1]}
54. Rc7 {[%clk 0:00:07.8]} 54... Kd4 {[%clk 0:00:05.4]} 55. Bf5 {[%clk
0:00:05.6]} 55... Ke3 {[%clk 0:00:05]} 56. g3 {[%clk 0:00:05.5]} 56... f3 {[%clk
0:00:05.1]} 57. Bh3 {[%clk 0:00:03.1]} 57... f2 {[%clk 0:00:03.4]} 58. Re7+
{[%clk 0:00:03.7]} 58... Kd3 {[%clk 0:00:03.6]} 59. Rf7 {[%clk 0:00:04.2]} 59...
Ke3 {[%clk 0:00:04]} 60. Kg2 {[%clk 0:00:03.8]} 60... f1=Q+ {[%clk 0:00:02.6]}
61. Rxf1 {[%clk 0:00:04.4]} 61... Nxf1 {[%clk 0:00:03.5]} 62. Kxf1 {[%clk
0:00:05]} 62... c3 {[%clk 0:00:04]} 63. Bf5 {[%clk 0:00:05.4]} 63... Kf3 {[%clk
0:00:02.5]} 64. Kg1 {[%clk 0:00:05.2]} 64... Ke3 {[%clk 0:00:02.4]} 65. Kg2
{[%clk 0:00:05.5]} 65... Kd2 {[%clk 0:00:03.3]} 66. Kf3 {[%clk 0:00:05.6]} 66...
c2 {[%clk 0:00:04.2]} 67. Bxc2 {[%clk 0:00:05.3]} 67... Kxc2 {[%clk 0:00:05.1]}
68. Kg4 {[%clk 0:00:05.8]} 68... Kd3 {[%clk 0:00:06]} 69. Kh5 {[%clk 0:00:06.4]}
69... Ke4 {[%clk 0:00:06.7]} 70. Kxh6 {[%clk 0:00:07]} 70... Kf5 {[%clk
0:00:07.6]} 71. Kh5 {[%clk 0:00:07.1]} 71... Kf6 {[%clk 0:00:08]} 72. g4 {[%clk
0:00:06.7]} 72... Kg7 {[%clk 0:00:08.9]} 73. h4 {[%clk 0:00:06.5]} 73... Kh7
{[%clk 0:00:09.8]} 74. Kg5 {[%clk 0:00:06.9]} 74... Kg7 {[%clk 0:00:10.7]} 1-0